bitfinex-derivatives/quotes_SOLF0:USTF0_20250625
["timestamp","ask_amount","ask_price","bid_price","bid_amount"]
[1750857482148,44.97322757,147.15,147.07,37.92]
[1750857482452,37.92,147.15,147.08,7.05322757]
[1750857482660,37.92,147.15,147.1,7.05322757]
[1750857483046,40.1534,147.18,147.09,7.05322757]
[1750857483242,40.1534,147.18,147.07,37.92]
[1750857483243,47.20662757,147.18,147.07,37.92]
[1750857483548,7.05322757,147.16,147.08,7.05322757]
[1750857483742,6.7927,147.15,147.1,6.7947]
[1750857483944,6.7927,147.15,147.07,37.92]
[1750857484146,7.05322757,147.17,147.08,7.05322757]
[1750857484351,6.7927,147.15,147.1,6.7947]
[1750857484650,6.7927,147.15,147.08,7.05322757]
[1750857484853,7.05322757,147.17,147.08,7.05322757]
[1750857485251,40.1534,147.18,147.03,13.5962]
[1750857485252,6.7948,147.11,147.06,6.7965]
[1750857485445,2.2211,147.1,147.04,37.92]
[1750857486448,7.05322757,147.09,147.04,6.7976]
[1750857486755,7.05322757,147.09,147.01,37.92]
[1750857486953,13.84892757,147.09,147.01,37.92]
[1750857487252,7.05322757,147.09,147.01,37.92]
[1750857487453,6.796,147.08,147.04,6.7975]
[1750857487646,7.05322757,147.09,147.04,6.7975]
[1750857487846,6.7962,147.08,147.04,6.7975]
[1750857488054,2.2211,147.1,147.01,44.97322757]
[1750857488252,4.06441182,147.19,147.07,7.05322757]
[1750857488445,44.97322757,147.18,147.08,7.05322757]
[1750857488647,49.03763939,147.18,147.11,6.7942]
[1750857488845,6.7934,147.14,147.06,44.79322757]
[1750857489052,37.74,147.14,147.06,44.79322757]
[1750857489248,37.74,147.14,147.08,6.7957]
[1750857489448,44.79322757,147.14,147.04,7.05322757]
[1750857489653,7.05322757,147.11,147.02,9.28292757]
[1750857489956,594.17322757,147.2,146.98,147.56242757]
[1750857489957,13.85002757,147.07,146.98,147.56242757]
[1750857490171,7.05322757,147.05,146.96,37.74]
[1750857490459,37.74,147.04,146.96,37.74]
[1750857490655,37.74,147.04,146.97,7.05322757]
[1750857491457,37.74,147.04,146.99,6.8]
[1750857491659,37.74,147.04,146.97,7.05322757]
[1750857491854,37.74,147.04,147.0,6.7994]
[1750857492156,6.9282,147.1,147.0,6.7994]
[1750857492157,7.05322757,147.09,147.01,7.05322757]
[1750857492352,7.05322757,147.07,147.0,37.74]
[1750857492653,6.9282,147.1,147.01,7.05964376]
[1750857492859,44.5356,147.09,147.01,7.05964376]
[1750857493253,37.74,147.09,147.01,7.05964376]
[1750857493556,37.74,147.09,147.02,7.05675758]
[1750857493757,37.74,147.09,147.03,6.7979]
[1750857494058,44.5357,147.09,147.02,7.05675758]
[1750857494257,37.74,147.09,147.02,7.05675758]
[1750857494854,37.74,147.09,147.04,6.7975]
[1750857495150,44.79675758,147.09,147.0,44.79675758]
[1750857495354,7.05675758,147.07,146.97,37.74]
[1750857495554,37.74,147.09,146.98,7.05675758]
[1750857495754,7.05675758,147.08,146.98,7.05675758]
[1750857495956,6.7973,147.05,147.0,6.7993]
[1750857496152,37.74,147.05,146.98,7.05675758]
[1750857496353,37.74,147.05,147.01,6.7989]
[1750857496559,37.74,147.05,146.98,7.05675758]
[1750857497152,37.74,147.05,147.02,6.7985]
[1750857497349,37.74,147.05,147.0,7.05675758]
[1750857497557,13.7232,147.1,147.02,7.05675758]
[1750857497756,37.74,147.09,147.02,7.05675758]
[1750857498150,37.74,147.09,147.05,6.797]
[1750857499454,37.74,147.09,147.06,6.7968]
[1750857499758,44.5355,147.09,147.02,7.05675758]
[1750857499963,37.74,147.09,147.0,7.05675758]
[1750857500161,7.05675758,147.08,147.0,7.05675758]
[1750857500455,7.05675758,147.08,147.02,6.7984]
[1750857500856,7.05675758,147.06,146.97,37.74]
[1750857501162,7.05675758,147.04,146.96,7.05675758]
[1750857501453,44.6538,147.03,147.0,6.7996]
[1750857502055,51.4524,147.03,147.0,6.7996]
[1750857502257,44.6538,147.03,146.99,6.7998]
[1750857502461,44.6538,147.03,146.94,39.9692]
[1750857502662,44.6538,147.03,146.95,7.05675758]
[1750857503562,51.4524,147.03,146.99,6.7997]
[1750857503763,44.6538,147.03,146.99,6.7997]
[1750857504064,6.7987,147.02,146.99,6.7997]
[1750857504268,44.6538,147.03,147.0,6.7996]
[1750857504468,44.6538,147.03,146.95,7.05675758]
[1750857504858,44.6538,147.03,146.98,6.8002]
[1750857505059,44.6538,147.03,146.94,47.02595758]
[1750857505467,44.6538,147.03,146.98,6.8003]
[1750857505872,6.7991,147.02,146.98,6.8003]
[1750857506057,44.6538,147.03,146.94,47.02595758]
[1750857506255,6.7994,147.01,146.94,47.02595758]
[1750857507662,6.7994,147.01,146.97,6.8006]
[1750857507860,6.7989,147.02,146.94,47.02595758]
[1750857508080,40.1329,147.03,146.98,7.05675758]
[1750857508262,40.1329,147.03,147.0,6.7993]
[1750857508566,7.05675758,147.07,146.98,7.05675758]
[1750857508866,40.197,147.1,147.04,7.05675758]
[1750857509073,37.76,147.13,147.06,7.05675758]
[1750857509365,37.76,147.13,147.0,9.41795758]
[1750857509366,37.76,147.13,147.08,7.05675758]
[1750857509768,37.76,147.13,147.05,37.76]
[1750857509974,37.76,147.13,147.05,44.81675758]
[1750857510277,37.76,147.13,147.09,6.7951]
[1750857510464,37.76,147.13,147.05,37.76]
[1750857510872,37.76,147.13,147.07,6.7963]
[1750857511474,37.76,147.13,147.08,6.7958]
[1750857511972,44.554,147.13,147.08,6.7958]
[1750857512277,37.76,147.13,147.05,37.76]
[1750857512578,44.5539,147.13,147.06,7.05675758]
[1750857513377,44.5539,147.13,147.08,6.7956]
[1750857513575,37.76,147.13,147.06,7.05675758]
[1750857513877,4.6407,147.14,147.11,6.7942]
[1750857514176,2.2743,147.14,147.08,7.05675758]
[1750857514672,2.2743,147.14,147.05,37.76]
[1750857514872,9.0677,147.14,147.1,6.795]
[1750857516177,9.0677,147.14,147.11,6.7945]
[1750857516472,2.2743,147.14,147.11,6.7945]
[1750857516681,2.2743,147.14,147.07,7.05675758]
[1750857516975,2.2743,147.14,147.05,44.81675758]
[1750857517175,2.2743,147.14,147.1,6.7947]
[1750857517777,2.2743,147.14,147.05,44.81675758]
[1750857517980,9.33105758,147.14,147.05,44.81675758]
[1750857518174,4.6411,147.13,147.05,44.81675758]
[1750857518374,44.5343,147.12,147.05,44.81675758]
[1750857519766,37.74,147.12,147.09,6.7953]
[1750857520192,37.74,147.12,147.05,44.81675758]
[1750857520572,44.5341,147.12,147.08,6.7956]
[1750857520868,37.74,147.12,147.05,44.81675758]
[1750857521386,37.74,147.12,147.07,7.05675758]
[1750857521571,2.2743,147.14,147.07,7.05675758]
[1750857521770,2.2743,147.14,147.09,7.05675758]
[1750857521983,37.88,147.16,147.09,7.05675758]
[1750857522184,6.7928,147.15,147.11,6.7943]
[1750857522374,37.88,147.16,147.09,7.05675758]
[1750857522881,37.88,147.16,147.12,6.7938]
[1750857523071,37.88,147.16,147.08,7.05675758]
[1750857523273,6.7929,147.15,147.1,6.7948]
[1750857523475,6.7929,147.15,147.08,7.05675758]
[1750857523778,37.88,147.16,147.06,7.05675758]
[1750857523978,7.05675758,147.15,147.06,7.05675758]
[1750857524372,6.7953,147.1,147.06,6.7967]
[1750857524770,6.7953,147.1,147.02,44.93675758]
[1750857524972,37.88,147.11,147.02,44.93675758]
[1750857525270,37.88,147.11,147.04,7.05675758]
[1750857525578,4.6081,147.12,147.09,6.7953]
[1750857525883,2.4091,147.12,147.09,6.7953]
[1750857526584,2.4091,147.12,147.1,6.7949]
[1750857527077,2.4091,147.12,147.06,7.05675758]
[1750857528084,2.4091,147.12,147.1,6.795]
[1750857528584,37.86,147.13,147.08,7.05675758]
[1750857528976,2.2164,147.14,147.08,7.05675758]
[1750857529177,37.86,147.16,147.08,7.05675758]
[1750857529578,37.86,147.16,147.11,6.7944]
[1750857530375,44.6525,147.16,147.11,6.7944]
[1750857530575,37.86,147.16,147.08,7.05675758]
[1750857530984,44.91675758,147.16,147.07,7.05675758]
[1750857531370,37.86,147.16,147.07,7.05675758]
[1750857531884,44.6525,147.16,147.07,7.05675758]
[1750857532087,11.80695758,147.18,147.07,7.05675758]
[1750857532385,37.86,147.15,147.09,7.05675758]
[1750857532586,37.86,147.15,147.13,6.7932]
[1750857532889,37.86,147.15,147.09,7.05675758]
[1750857533686,37.86,147.17,147.09,7.05675758]
[1750857534290,37.86,147.17,147.12,6.7937]
[1750857534689,37.86,147.17,147.11,6.7944]
[1750857534990,37.86,147.17,147.07,7.05675758]
[1750857535193,6.7924,147.16,147.11,6.7941]
[1750857535691,37.86,147.17,147.11,6.7941]
[1750857535885,6.7927,147.15,147.11,6.7941]
[1750857536082,6.7927,147.15,147.12,6.794]
[1750857536291,6.7924,147.16,147.12,6.794]
[1750857536591,37.86,147.17,147.11,6.7943]
[1750857536793,7.05675758,147.16,147.11,6.7943]
[1750857536996,44.91675758,147.17,147.07,7.05675758]
[1750857537480,6.793,147.15,147.07,7.05675758]
[1750857537685,37.86,147.17,147.07,7.05675758]
[1750857537884,37.86,147.16,147.14,6.7931]
[1750857539293,37.86,147.16,147.09,7.05675758]
[1750857539294,37.86,147.16,147.15,6.7927]
[1750857541087,37.86,147.16,147.14,6.7929]
[1750857541291,37.86,147.16,147.09,7.05675758]
[1750857541686,37.86,147.16,147.14,6.7929]
[1750857542294,37.86,147.16,147.06,51.4531]
[1750857542490,4.7502,147.18,147.08,7.05675758]
[1750857542696,37.86,147.17,147.1,7.05675758]
[1750857543088,44.91675758,147.17,147.08,7.05675758]
[1750857543396,6.7938,147.13,147.1,6.7949]
[1750857543594,44.6538,147.13,147.1,6.7949]
[1750857543992,37.86,147.13,147.1,6.7949]
[1750857544182,37.86,147.13,147.06,37.86]
[1750857544384,37.86,147.17,147.1,4.23096561]
[1750857544797,4.23096561,147.15,147.08,4.23096561]
[1750857545296,6.7938,147.13,147.1,6.7946]
[1750857545498,37.86,147.13,147.08,4.23096561]
[1750857546090,44.6537,147.13,147.1,6.7947]
[1750857546496,37.86,147.13,147.07,4.23096561]
[1750857546692,42.09096561,147.13,147.07,4.23096561]
[1750857547099,6.7943,147.12,147.09,6.7952]
[1750857547795,6.7946,147.11,147.09,6.7952]
[1750857548186,4.23096561,147.11,147.04,4.23096561]
[1750857548493,8.96046561,147.11,147.03,37.86]
[1750857548890,4.23096561,147.09,147.01,4.23096561]
[1750857549088,4.23096561,147.07,147.0,37.86]
[1750857549396,4.23096561,147.05,146.97,4.23096561]
[1750857549594,37.86,147.04,146.97,4.23096561]
[1750857549795,37.86,147.04,146.99,4.23096561]
[1750857550211,2.2027,147.06,147.01,4.23096561]
[1750857550393,42.05096561,147.1,147.03,4.23096561]
[1750857550599,6.7956,147.09,147.05,6.7969]
[1750857551197,48.84606561,147.1,147.06,6.7968]
[1750857551895,44.6151,147.1,147.07,6.7963]
[1750857552098,44.6151,147.1,147.03,4.23096561]
[1750857552292,37.82,147.1,147.03,4.23096561]
[1750857552493,37.82,147.1,147.05,6.7972]
[1750857552902,4.23096561,147.09,147.05,6.7972]
[1750857553197,4.23096561,147.09,147.06,6.7966]
[1750857553809,11.02666561,147.09,147.05,6.7971]
[1750857554004,4.23096561,147.07,147.0,4.23096561]
[1750857554205,4.23096561,147.03,146.97,12.32371694]
[1750857554500,4.23096561,147.03,146.94,17.83556561]
[1750857554699,4.23096561,147.01,146.94,17.83556561]
[1750857554902,4.23096561,147.01,147.0,6.7996]
[1750857555102,4.23096561,147.03,146.96,4.23096561]
[1750857555402,4.23096561,147.03,147.01,6.7988]
[1750857555797,4.23096561,147.03,146.96,4.23096561]
[1750857556203,44.88377827,147.04,146.94,20.66837827]
[1750857556514,37.82,147.04,146.94,13.6046]
[1750857556703,37.82,147.04,146.95,7.06377827]
[1750857556900,37.82,147.04,147.01,6.7989]
[1750857557104,37.82,147.04,146.95,7.06377827]
[1750857557612,37.82,147.04,146.95,69.06377827]
[1750857557799,37.82,147.04,146.95,71.27537827]
[1750857558004,37.82,147.04,147.03,6.7982]
[1750857558203,37.82,147.04,146.96,37.82]
[1750857558509,37.82,147.04,147.03,6.7982]
[1750857558815,37.82,147.04,146.97,7.06377827]
[1750857560405,37.82,147.04,147.02,6.7986]
[1750857560612,44.88377827,147.04,146.96,37.82]
[1750857561106,51.68177827,147.04,147.0,6.7994]
[1750857561308,44.88377827,147.04,146.96,37.82]
[1750857561514,37.82,147.04,146.96,37.82]
[1750857562414,4.7367,147.05,146.97,7.06377827]
[1750857562808,6.7978,147.04,147.0,6.7992]
[1750857563115,11.80047827,147.05,146.96,37.82]
[1750857563412,13.86207827,147.03,146.99,6.7997]
[1750857563612,37.84,147.02,146.99,6.7997]
[1750857564508,44.6387,147.02,146.99,6.7997]
[1750857564714,37.84,147.02,146.99,6.7997]
[1750857565014,37.84,147.02,146.98,6.8004]
[1750857565306,44.639,147.02,146.98,6.8004]
[1750857566212,44.639,147.02,146.99,6.8]
[1750857566403,6.7992,147.01,146.94,7.06377827]
[1750857566606,37.84,147.02,146.99,6.7999]
[1750857567209,37.84,147.02,146.93,37.84]
[1750857567610,37.84,147.02,146.92,7.06377827]
[1750857567816,6.7998,147.0,146.97,6.8007]
[1750857568112,37.84,147.02,146.94,7.06377827]
[1750857570018,37.84,147.02,146.92,2.4309]
[1750857570220,37.84,147.02,146.95,7.06377827]
[1750857570418,37.84,147.02,146.93,7.06377827]
[1750857571417,37.84,147.02,146.92,2.4309]
[1750857571625,37.84,147.02,146.95,7.06377827]
[1750857571821,37.84,147.02,146.97,7.06377827]
[1750857572019,598.874,147.05,146.97,7.06377827]
[1750857572324,37.84,147.03,147.0,6.7994]
[1750857573132,37.84,147.03,147.01,6.7989]
[1750857573625,37.84,147.03,146.95,44.90377827]
[1750857574133,37.84,147.03,146.97,7.06377827]
[1750857576135,37.84,147.03,146.95,37.84]
[1750857576434,37.84,147.03,146.97,4.237735]
[1750857577025,37.84,147.03,147.0,6.7992]
[1750857577229,37.84,147.03,146.97,4.237735]
[1750857577435,592.0767,147.05,146.99,4.237735]
[1750857577634,4.7367,147.05,147.03,6.7978]
[1750857579322,4.7367,147.05,147.02,6.7985]
[1750857581137,4.7367,147.05,147.03,6.7981]
[1750857583139,4.7367,147.05,147.04,6.7977]
[1750857583540,4.7367,147.05,146.99,4.237735]
[1750857583743,4.7367,147.05,147.03,6.7979]
[1750857584737,11.534,147.05,147.02,6.7985]
[1750857584933,15.771735,147.05,147.02,6.7985]
[1750857585143,8.974435,147.05,146.99,4.237735]
[1750857585440,4.7367,147.05,146.99,4.237735]
[1750857586236,4.7367,147.05,147.03,6.798]
[1750857586933,4.7367,147.05,147.04,6.7977]
[1750857587240,4.7367,147.05,146.99,4.237735]
[1750857588941,4.7367,147.05,146.96,13.6027]
[1750857589234,4.7367,147.05,146.98,4.237735]
[1750857589440,4.7367,147.05,147.02,6.7984]
[1750857590545,4.7367,147.05,147.03,6.7981]
[1750857590745,40.2048,147.06,147.0,4.237735]
[1750857591040,40.2048,147.06,147.04,6.7975]
[1750857591244,40.2048,147.06,146.98,13.601]
[1750857591543,40.2048,147.06,146.99,4.237735]
[1750857591738,40.2048,147.06,147.01,4.237735]
[1750857591936,37.84,147.06,147.01,4.237735]
[1750857592241,37.36,147.08,147.05,6.7969]
[1750857592447,37.36,147.08,147.01,4.237735]
[1750857592745,37.36,147.08,147.03,4.237735]
[1750857592935,37.36,147.08,147.05,4.237735]
[1750857593140,2.4039,147.1,147.01,2.2831]
[1750857593339,2.4039,147.1,147.07,6.7964]
[1750857594148,2.4039,147.1,147.08,6.7959]
[1750857594642,37.34,147.13,147.06,4.237735]
[1750857595238,37.34,147.13,147.03,37.34]
[1750857595435,41.47949555,147.13,147.07,4.237735]
[1750857595637,37.34,147.13,147.07,4.237735]
[1750857596248,4.237735,147.12,147.03,37.34]
[1750857596446,37.34,147.13,147.03,37.34]
[1750857596447,39.7355,147.13,147.03,37.34]
[1750857596746,4.237735,147.12,147.03,37.34]
[1750857596951,6.795,147.1,147.06,6.7966]
[1750857597140,43.87237574,147.13,147.04,4.237735]
[1750857597341,4.237735,147.12,147.04,4.237735]
[1750857597641,11.032035,147.12,147.08,6.7957]
[1750857597846,4.237735,147.12,147.04,4.237735]
[1750857598045,4.237735,147.12,147.08,6.7956]
[1750857598247,4.237735,147.12,147.04,4.237735]
[1750857598434,4.237735,147.1,147.04,4.237735]
[1750857598838,11.032735,147.1,147.04,4.237735]
[1750857599040,4.237735,147.1,147.04,4.237735]
[1750857599652,4.237735,147.1,147.07,6.7961]
[1750857599851,4.237735,147.1,147.03,41.577735]
[1750857600051,4.237735,147.1,147.08,6.7958]
[1750857600350,4.237735,147.12,147.05,4.237735]
[1750857600939,39.7355,147.13,147.05,4.237735]
[1750857601142,4.237735,147.12,147.05,4.237735]
[1750857601745,11.031835,147.12,147.08,6.7956]
[1750857601944,4.237735,147.12,147.05,4.237735]
[1750857602349,11.031835,147.12,147.09,6.7952]
[1750857602550,11.031835,147.12,147.05,4.237735]
[1750857602947,2.3955,147.13,147.07,4.237735]
[1750857603154,4.6474,147.15,147.1,4.237735]
[1750857603459,2.3191,147.15,147.1,4.237735]
[1750857604857,41.577735,147.17,147.1,4.237735]
[1750857605157,41.577735,147.17,147.14,6.7931]
[1750857605360,41.577735,147.17,147.1,4.237735]
[1750857605750,41.577735,147.17,147.13,6.7935]
[1750857606161,48.369735,147.17,147.13,6.7935]
[1750857606362,41.577735,147.17,147.14,6.7929]
[1750857606657,2.3334,147.21,147.16,4.237735]
[1750857606859,2.4156,147.24,147.2,6.7899]
[1750857607058,2.4156,147.24,147.16,4.237735]
[1750857607251,2.4156,147.24,147.14,37.34]
[1750857607252,2.4156,147.24,147.18,4.237735]
[1750857607664,2.4156,147.24,147.14,37.34]
[1750857607967,2.204,147.29,147.24,6.7882]
[1750857608163,2.204,147.29,147.23,4.237735]
[1750857608463,626.18,147.3,147.25,4.237735]
[1750857608464,39.08,147.3,147.25,4.237735]
[1750857608660,2.204,147.35,147.2,43.317735]
[1750857608966,4.6332,147.38,147.31,6.7852]
[1750857609148,6.8372,147.38,147.26,40.84]
[1750857609351,6.8372,147.38,147.27,40.84]
[1750857609550,6.8372,147.38,147.31,6.7851]
[1750857610168,4.237735,147.34,147.22,614.1223]
[1750857610463,49.49627918,147.33,147.23,7.03627918]
[1750857610662,49.49627918,147.33,147.26,6.7876]
[1750857610872,7.03962096,147.29,147.18,42.46]
[1750857611061,4.7459,147.28,147.18,42.46]
[1750857611562,7.03962096,147.25,147.16,9.38352096]
[1750857611764,56.28802096,147.25,147.16,9.38352096]
[1750857611971,7.03962096,147.23,147.16,2.3439]
[1750857612169,13.82892096,147.23,147.16,6.7922]
[1750857612366,7.03962096,147.22,147.12,42.44]
[1750857612570,42.46,147.25,147.13,7.03962096]
[1750857612758,7.03962096,147.22,147.13,7.03962096]
[1750857613065,49.49962096,147.25,147.12,42.44]
[1750857613258,42.44,147.26,147.15,7.03962096]
[1750857613454,7.03962096,147.25,147.15,7.03962096]
[1750857613859,42.44,147.26,147.2,6.79]
[1750857614057,42.44,147.26,147.18,7.03962096]
[1750857614261,42.44,147.26,147.2,7.03962096]
[1750857614457,2.4285,147.27,147.22,6.7894]
[1750857614761,2.4285,147.27,147.17,7.0559]
[1750857614966,2.4285,147.27,147.19,7.03962096]
[1750857615767,4.7459,147.28,147.2,42.44]
[1750857616267,4.7459,147.28,147.22,6.7891]
[1750857616467,4.7459,147.28,147.2,42.44]
[1750857617065,7.03962096,147.27,147.2,42.44]
[1750857617664,13.82672096,147.27,147.21,6.7897]
[1750857617871,7.03962096,147.27,147.17,56.53552096]
[1750857618071,7.03962096,147.25,147.19,6.7907]
[1750857618271,7.03962096,147.23,147.14,42.44]
[1750857618475,7.03962096,147.21,147.14,42.44]
[1750857618663,7.03962096,147.21,147.17,6.7915]
[1750857619675,586.64,147.27,147.16,7.03962096]
[1750857619866,7.03962096,147.24,147.14,49.47962096]
[1750857620063,2.2604,147.26,147.14,42.44]
[1750857620264,7.03962096,147.23,147.14,42.44]
[1750857620475,49.47962096,147.23,147.14,42.44]
[1750857620664,49.47962096,147.23,147.18,6.7909]
[1750857620869,7.03962096,147.21,147.14,42.44]
[1750857621071,7.03962096,147.21,147.12,7.03962096]
[1750857621372,7.03962096,147.21,147.11,7.03962096]
[1750857621373,9.1956,147.2,147.11,7.03962096]
[1750857621670,42.44,147.19,147.11,7.03962096]
[1750857621872,44.6359,147.19,147.15,6.7923]
[1750857622276,44.6359,147.19,147.11,7.03962096]
[1750857622669,51.4268,147.19,147.11,7.03962096]
[1750857622877,51.67552096,147.19,147.09,42.44]
[1750857623176,51.67552096,147.19,147.1,7.03962096]
[1750857623379,44.6359,147.19,147.12,7.03962096]
[1750857624180,44.6359,147.19,147.14,6.7931]
[1750857624374,44.6359,147.19,147.12,7.03962096]
[1750857624778,51.427,147.19,147.11,7.03962096]
[1750857624970,44.6359,147.19,147.11,7.03962096]
[1750857625174,44.6359,147.19,147.15,6.7923]
[1750857625578,44.6359,147.19,147.17,6.7917]
[1750857626276,42.44,147.19,147.18,6.7913]
[1750857626483,42.44,147.19,147.09,42.44]
[1750857626672,42.44,147.19,147.15,6.7924]
[1750857626880,42.44,147.22,147.13,7.03962096]
[1750857627183,42.44,147.21,147.13,7.03962096]
[1750857627573,42.44,147.21,147.15,7.03962096]
[1750857627774,42.44,147.21,147.13,42.44]
[1750857628078,42.44,147.21,147.16,7.03962096]
[1750857628379,42.44,147.23,147.16,7.03962096]
[1750857628580,42.44,147.23,147.13,42.44]
[1750857628581,49.47962096,147.23,147.14,7.03962096]
[1750857628780,6.7898,147.22,147.17,6.7914]
[1750857628986,6.7898,147.22,147.14,7.03962096]
[1750857629184,49.47962096,147.23,147.14,7.03962096]
[1750857629481,49.47962096,147.23,147.18,6.791]
[1750857629681,42.44,147.23,147.14,7.03962096]
[1750857629878,49.2292,147.23,147.14,7.03962096]
[1750857630279,42.44,147.23,147.14,7.03962096]
[1750857630684,49.2292,147.23,147.14,7.03962096]
[1750857631383,42.44,147.23,147.14,7.03962096]
[1750857631588,42.44,147.23,147.19,6.7908]
[1750857631783,42.44,147.23,147.14,7.03962096]
[1750857631784,49.2292,147.23,147.14,7.03962096]
[1750857632181,7.03962096,147.22,147.13,42.44]
[1750857632485,13.83022096,147.2,147.13,42.44]
[1750857632683,7.03962096,147.22,147.13,42.44]
[1750857632877,7.03962096,147.22,147.13,49.47962096]
[1750857633073,6.7901,147.21,147.16,6.7919]
[1750857633279,7.03962096,147.22,147.13,42.44]
[1750857634087,6.7911,147.19,147.13,42.44]
[1750857634487,7.03962096,147.2,147.15,6.7925]
[1750857634785,9.1534,147.18,147.15,6.7925]
[1750857634976,2.3618,147.18,147.09,22.89322096]
[1750857635173,2.3618,147.18,147.11,7.03962096]
[1750857635574,2.3618,147.18,147.16,6.7919]
[1750857635776,2.3618,147.18,147.11,7.03962096]
[1750857635979,9.1535,147.18,147.15,6.7924]
[1750857636788,2.3618,147.18,147.1,42.44]
[1750857637090,7.03962096,147.17,147.1,42.44]
[1750857637491,2.3618,147.18,147.1,42.44]
[1750857637887,6.7925,147.16,147.12,6.7936]
[1750857638092,7.03962096,147.17,147.08,586.9]
[1750857638489,6.7934,147.14,147.11,6.7942]
[1750857638791,2.3618,147.18,147.07,44.7084]
[1750857638993,7.03962096,147.17,147.13,6.7935]
[1750857639590,7.03962096,147.17,147.12,6.7938]
[1750857639988,6.7928,147.15,147.08,7.03962096]
[1750857640190,6.7928,147.15,147.12,6.7937]
[1750857640391,49.83962096,147.15,147.05,7.03962096]
[1750857640591,42.8,147.15,147.06,7.03962096]
[1750857640791,42.8,147.15,147.11,6.7943]
[1750857640997,6.7934,147.14,147.11,6.7943]
[1750857641900,6.7934,147.14,147.12,6.794]
[1750857642098,49.5929,147.15,147.08,7.03962096]
[1750857642596,49.5929,147.15,147.12,6.794]
[1750857642788,42.8,147.15,147.12,6.794]
[1750857643196,6.7932,147.14,147.12,6.794]
[1750857643501,42.8,147.15,147.06,7.03962096]
[1750857643796,6.794,147.13,147.1,6.7946]
[1750857644501,6.794,147.13,147.06,7.03962096]
[1750857645387,6.7933,147.14,147.06,7.03962096]
[1750857645591,42.8,147.15,147.12,6.794]
[1750857645792,42.8,147.15,147.08,7.03962096]
[1750857645986,49.5929,147.15,147.08,7.03962096]
[1750857646193,45.1618,147.18,147.1,7.03962096]
[1750857646386,51.9533,147.18,147.1,49.83962096]
[1750857646790,45.1618,147.18,147.12,7.03962096]
[1750857647194,51.9533,147.18,147.12,7.03962096]
[1750857647596,2.3618,147.18,147.12,7.03962096]
[1750857647791,2.3618,147.18,147.14,7.03962096]
[1750857647992,6.7906,147.2,147.14,7.03962096]
[1750857648191,42.8,147.21,147.17,6.7915]
[1750857648192,49.5899,147.21,147.17,6.7915]
[1750857648500,42.8,147.21,147.17,6.7915]
[1750857649092,42.8,147.21,147.16,6.792]
[1750857649495,49.5901,147.21,147.17,6.7916]
[1750857649695,42.8,147.21,147.17,6.7916]
[1750857650098,42.8,147.21,147.1,42.8]
[1750857650403,42.8,147.21,147.11,7.03962096]
[1750857650802,7.03962096,147.18,147.06,42.8]
[1750857651005,47.3772,147.17,147.08,7.03962096]
[1750857651197,6.7923,147.16,147.13,6.7933]
[1750857651399,8.9971,147.16,147.13,6.7933]
[1750857652503,8.9971,147.16,147.08,7.03962096]
[1750857653093,8.9971,147.16,147.13,6.7933]
[1750857653295,6.7927,147.15,147.08,7.03962096]
[1750857653600,9.24442096,147.16,147.06,49.83962096]
[1750857653801,16.03692096,147.16,147.06,49.83962096]
[1750857654300,8.9973,147.16,147.12,6.7938]
[1750857654500,2.2048,147.16,147.08,7.03962096]
[1750857654698,2.2048,147.16,147.13,6.7933]
[1750857654894,8.9971,147.16,147.13,6.7933]
[1750857655093,8.9971,147.16,147.08,7.03962096]
[1750857655305,8.9971,147.16,147.13,6.7936]
[1750857655499,2.2048,147.16,147.08,7.03962096]